bitfinex/quotes_SOLUSD_20240622
["timestamp","ask_amount","ask_price","bid_price","bid_amount"]
[1719020543583,9.35,134.17,134.14,7.4548]
[1719020544191,9.35,134.16,134.12,7.4556]
[1719020544984,9.35,134.15,134.12,7.4556]
[1719020545184,7.4534,134.17,134.12,7.4556]
[1719020545514,9.35,134.15,134.12,7.4556]
[1719020548225,9.35,134.15,134.13,7.4554]
[1719020548406,9.35,134.15,134.06,43.3647]
[1719020548407,9.35,134.14,134.07,34.448]
[1719020548583,9.35,134.11,134.07,34.448]
[1719020548911,9.35,134.11,134.09,7.4576]
[1719020551510,9.35,134.11,134.1,7.4571]
[1719020552084,9.35,134.12,134.1,7.4571]
[1719020553513,9.35,134.11,134.08,7.4581]
[1719020554611,9.35,134.1,134.08,7.4581]
[1719020555184,9.35,134.1,134.05,18.6495]
[1719020555600,9.35,134.1,134.07,7.4587]
[1719020556106,9.35,134.1,134.08,7.4581]
[1719020557890,9.35,134.1,134.07,7.4585]
[1719020559015,9.35,134.09,134.07,7.4585]
[1719020559708,9.35,134.09,134.04,15.8018]
[1719020559912,9.35,134.09,134.05,7.4596]
[1719020559913,9.35,134.07,134.05,7.4596]
[1719020563994,9.35,134.08,134.05,7.4596]
[1719020565215,9.35,134.07,134.05,7.4596]
[1719020565410,9.35,134.07,134.04,7.4602]
[1719020566408,9.35,134.07,134.05,7.4598]
[1719020567423,9.35,134.07,134.04,7.4601]
[1719020570413,9.35,134.07,134.05,7.4597]
[1719020571821,7.457,134.11,134.06,7.4593]
[1719020572028,45.19691172,134.12,134.07,7.4586]
[1719020572029,29.35,134.1,134.07,7.4586]
[1719020572326,7.4561,134.12,134.07,7.4586]
[1719020572526,27.4566,134.11,134.07,7.4586]
[1719020572717,9.35,134.1,134.07,7.4586]
[1719020572922,9.35,134.1,134.06,7.459]
[1719020574511,16.8071,134.1,134.06,7.459]
[1719020574910,16.8071,134.1,134.05,7.4597]
[1719020575113,9.35,134.09,134.05,7.4597]
[1719020575324,7.4571,134.1,134.05,7.4597]
[1719020575715,9.35,134.07,134.04,7.4604]
[1719020577715,9.35,134.07,134.05,7.4598]
[1719020577919,9.35,134.08,134.05,7.4598]
[1719020579030,20.0,134.11,134.04,28.0011]
[1719020579216,9.35,134.1,134.08,7.4582]
[1719020579613,20.0,134.12,134.08,7.4582]
[1719020579807,9.35,134.1,134.08,7.4582]
[1719020580336,9.35,134.1,134.07,7.4585]
[1719020581431,27.456,134.12,134.07,7.4585]
[1719020581629,9.35,134.1,134.07,7.4585]
[1719020584346,9.35,134.1,134.08,7.4581]
[1719020584521,9.35,134.11,134.08,7.4581]
[1719020584716,27.4558,134.13,134.08,7.4581]
[1719020585027,20.0,134.13,134.09,7.4576]
[1719020585214,9.35,134.11,134.09,7.4576]
[1719020585637,9.35,134.11,134.08,7.458]
[1719020585821,9.35,134.1,134.07,7.4585]
[1719020586036,20.0,134.13,134.06,16.5396]
[1719020586037,9.35,134.09,134.06,23.9985]
[1719020588644,9.35,134.09,134.07,7.4587]
[1719020588815,7.4566,134.11,134.07,7.4587]
[1719020589138,9.35,134.1,134.07,7.4587]
[1719020590251,9.35,134.1,134.03,18.6521]
[1719020590419,9.35,134.06,134.03,18.6521]
[1719020590753,9.35,134.06,134.05,7.4597]
[1719020592749,27.4577,134.09,134.05,7.4597]
[1719020592943,9.35,134.06,134.02,16.5396]
[1719020593122,9.35,134.04,133.99,44.5476]
[1719020593322,9.35,134.04,134.01,7.4618]
[1719020593535,9.35,134.04,134.02,7.4612]
[1719020593742,33.7497,134.09,134.0,28.0053]
[1719020594025,9.35,134.05,134.03,7.4608]
[1719020594242,9.35,134.05,134.03,7.4604]
[1719020595237,20.0,134.09,134.03,9.35]
[1719020595444,9.35,134.09,134.05,7.4594]
[1719020595630,9.35,134.08,134.05,7.4594]
[1719020595821,9.35,134.08,134.04,7.4601]
[1719020596019,9.35,134.07,134.04,7.4601]
[1719020596250,9.35,134.07,134.03,7.4608]
[1719020596437,9.35,134.06,134.03,7.4608]
[1719020597340,9.35,134.06,134.02,7.4613]
[1719020597536,7.4588,134.07,134.02,7.4613]
[1719020597743,9.35,134.06,134.02,7.4613]
[1719020598248,9.35,134.05,134.02,7.4613]
[1719020599034,9.35,134.06,134.02,7.4613]
[1719020602951,7.458,134.09,134.04,7.4601]
[1719020603262,9.35,134.08,134.03,9.35]
[1719020603834,9.35,134.08,134.04,7.4602]
[1719020604136,16.808,134.09,134.04,7.4602]
[1719020604325,16.808,134.09,134.04,16.8102]
[1719020605143,9.35,134.08,134.04,7.4602]
[1719020605630,16.8082,134.08,134.04,7.4602]
[1719020610462,16.8082,134.08,134.03,16.8107]
[1719020610630,7.459,134.07,134.03,7.4608]
[1719020610830,16.8084,134.08,134.03,7.4608]
[1719020611057,16.8084,134.08,134.04,7.4603]
[1719020613457,9.35,134.06,133.99,16.5396]
[1719020613770,9.35,134.05,134.01,7.4621]
[1719020614151,7.4598,134.06,134.01,7.4621]
[1719020614351,9.35,134.05,134.01,7.4621]
[1719020614937,9.35,134.05,134.02,7.4615]
[1719020616065,9.35,134.06,134.02,7.4615]
[1719020617440,7.4583,134.08,134.04,7.4603]
[1719020617648,29.35,134.07,134.04,7.4603]
[1719020618759,29.35,134.07,134.03,7.4607]
[1719020619952,9.35,134.08,134.04,7.4603]
[1719020620256,9.35,134.07,134.03,7.4607]
[1719020621853,9.35,134.07,134.04,7.4603]
[1719020622250,9.35,134.08,134.04,7.4603]
[1719020622556,9.35,134.08,134.03,9.35]
[1719020622557,16.8083,134.08,134.03,9.35]
[1719020623747,9.35,134.08,134.04,7.4604]
[1719020625052,9.35,134.08,134.05,7.4597]
[1719020625976,9.35,134.08,134.04,7.4602]
[1719020626279,9.35,134.07,134.03,23.9849]
[1719020626650,9.35,134.07,134.04,7.4604]
[1719020631455,9.35,134.07,134.05,7.4598]
[1719020632578,9.35,134.07,134.04,7.4603]
[1719020635083,7.4579,134.09,134.04,7.4603]
[1719020635286,7.4567,134.11,134.03,25.8742]
[1719020635582,9.35,134.11,134.07,7.4586]
[1719020637280,16.8066,134.11,134.07,7.4586]
[1719020637871,9.35,134.09,134.05,7.4593]
[1719020639180,16.8076,134.09,134.04,7.4602]
[1719020639370,16.8076,134.09,134.04,16.8102]
[1719020639755,9.35,134.08,134.04,7.4602]
[1719020640361,9.35,134.08,134.05,7.4598]
[1719020640767,9.35,134.07,134.04,7.4602]
[1719020643288,9.35,134.07,134.05,7.4598]
[1719020644687,9.35,134.06,134.04,7.4603]
[1719020648495,7.4578,134.09,134.05,7.4596]
[1719020648698,9.35,134.07,134.05,7.4596]
[1719020649676,9.35,134.07,134.04,7.4602]
[1719020650508,9.35,134.05,134.01,7.4618]
[1719020650684,9.35,134.04,133.98,18.659]
[1719020650991,9.35,134.04,134.02,7.4614]
[1719020651183,9.35,134.04,134.01,7.4619]
[1719020651776,9.35,134.03,134.0,7.4625]
[1719020653894,9.35,134.03,134.01,7.462]
[1719020654072,9.35,134.04,134.01,7.462]
[1719020654271,9.35,134.04,134.02,7.4615]
[1719020654886,9.35,134.04,134.01,7.4618]
[1719020660314,9.35,134.04,134.0,7.4624]
[1719020662514,9.35,134.03,134.0,7.4624]
[1719020666819,9.35,134.03,133.99,7.463]
[1719020667304,9.35,134.02,133.99,7.463]
[1719020668094,9.35,134.02,133.97,15.825]
[1719020668349,9.35,134.02,133.98,7.4635]
[1719020669418,9.35,134.02,133.99,7.4631]
[1719020670598,9.35,134.02,134.0,7.4626]
[1719020671890,21.91851628,134.08,133.98,9.35]
[1719020672132,9.35,134.05,134.02,7.4611]
[1719020672324,9.35,134.04,133.99,9.35]
[1719020672633,9.35,134.03,133.98,9.35]
[1719020673136,9.35,134.02,134.0,7.4621]
[1719020673619,9.35,134.02,133.98,7.4632]
[1719020674121,9.35,134.01,133.98,7.4632]
[1719020675316,9.35,134.01,133.99,7.4632]
[1719020678727,9.35,134.01,133.98,7.4636]
[1719020678923,9.35,134.01,133.97,7.4641]
[1719020679733,9.35,134.0,133.97,7.4641]
[1719020680229,9.35,134.01,133.97,7.4641]
[1719020682030,7.4627,134.0,133.93,18.6662]
[1719020682234,9.35,133.97,133.91,16.1058]
[1719020682419,9.35,133.97,133.94,7.4655]
[1719020682622,9.35,133.97,133.95,7.4653]
[1719020683230,9.35,133.98,133.95,7.4653]
[1719020686942,9.35,133.98,133.94,7.4657]
[1719020690246,7.4633,133.99,133.94,7.4657]
[1719020690439,9.35,133.98,133.95,7.4654]
[1719020693940,9.35,133.98,133.94,7.4658]
[1719020694867,16.8139,133.98,133.93,7.4664]
[1719020695144,9.35,133.98,133.94,7.466]
[1719020696053,16.8135,133.99,133.94,16.816]
[1719020697149,7.4638,133.98,133.94,9.35]
[1719020698149,16.8135,133.99,133.94,16.816]
[1719020700338,16.8138,133.98,133.93,16.8163]
[1719020701322,16.8138,133.98,133.94,7.466]
[1719020701323,9.35,133.98,133.94,7.466]
[1719020701529,7.4629,134.0,133.95,7.4651]
[1719020701747,20.0,133.99,133.92,0.865396]
[1719020701951,27.4618,134.02,133.97,7.4643]
[1719020702141,9.35,134.01,133.97,7.4643]
[1719020702746,9.35,134.01,133.96,16.8146]
[1719020703463,16.8121,134.01,133.96,16.8146]
[1719020704251,16.8121,134.01,133.96,9.35]
[1719020705064,7.4628,134.0,133.96,9.35]
[1719020706263,16.8123,134.01,133.96,9.35]
[1719020707255,16.8123,134.01,133.96,16.8148]
[1719020709856,20.0,134.02,133.92,0.865396]
[1719020710473,16.8155,133.95,133.92,0.865396]
[1719020710646,9.35,133.94,133.92,0.865396]
[1719020711833,18.662,133.97,133.92,0.865396]
[1719020712054,16.8165,133.93,133.92,0.865396]
[1719020712331,36.8165,133.93,133.92,0.865396]
[1719020712655,18.6689,133.92,133.8,50.8002]
[1719020712835,9.35,133.85,133.82,7.4723]
[1719020714143,9.35,133.85,133.81,9.35]
[1719020714342,9.35,133.84,133.81,7.4732]
[1719020715581,9.35,133.84,133.8,39.5904]
[1719020715769,9.35,133.84,133.8,23.532]
[1719020716443,7.4697,133.88,133.82,7.4723]
[1719020716743,29.35,133.87,133.81,9.35]
[1719020717170,29.35,133.87,133.82,9.35]
[1719020717371,29.35,133.87,133.82,16.8225]
[1719020718141,29.35,133.87,133.83,7.472]
[1719020718448,20.0,133.87,133.84,7.4715]
[1719020718647,9.35,133.88,133.84,7.4715]
[1719020718842,16.8193,133.88,133.83,7.4719]
[1719020719147,9.35,133.87,133.82,16.8224]
[1719020719348,9.35,133.86,133.82,7.4724]
[1719020719860,9.35,133.86,133.83,7.472]
[1719020720067,9.35,133.87,133.83,7.472]
[1719020720374,9.35,133.89,133.85,7.4707]
[1719020720747,9.35,133.88,133.84,7.4713]
[1719020720945,9.35,133.87,133.83,7.472]
[1719020721357,9.35,133.86,133.82,7.4724]
[1719020721566,37.4,133.91,133.8,34.7429]
[1719020721567,9.35,133.85,133.8,16.0584]
[1719020721746,9.35,133.84,133.8,16.0584]
[1719020722072,9.35,133.84,133.8,23.5322]
[1719020722247,9.35,133.85,133.81,7.4732]
[1719020722444,9.35,133.85,133.82,7.4726]
[1719020724471,9.35,133.86,133.82,7.4726]
[1719020724672,20.0,133.85,133.82,7.4726]
[1719020725369,7.4694,133.88,133.83,8.94781558]
[1719020725669,7.4694,133.88,133.82,9.35]
[1719020725670,36.8199,133.87,133.82,7.4725]
[1719020725878,29.35,133.87,133.83,7.472]
[1719020726376,29.35,133.87,133.83,16.822]
[1719020727365,29.35,133.87,133.83,7.472]
[1719020727561,9.35,133.86,133.81,7.6429]
[1719020727749,9.35,133.86,133.81,16.9929]
[1719020728074,9.35,133.85,133.81,7.6429]
[1719020728482,9.35,133.85,133.81,7.4729]
[1719020731180,9.35,133.85,133.81,16.8229]
[1719020731360,9.35,133.86,133.82,7.4725]
[1719020734978,20.0,133.87,133.83,9.35]
[1719020735280,9.35,133.89,133.85,7.4709]
[1719020736160,7.4686,133.9,133.85,7.4709]
[1719020736358,29.35,133.89,133.85,7.4709]
[1719020736565,36.8188,133.89,133.84,16.8213]
[1719020737273,9.35,133.88,133.84,7.4713]
[1719020739683,9.35,133.88,133.85,7.471]
[1719020739881,20.0,133.89,133.83,9.35]
[1719020740070,9.35,133.88,133.85,7.4709]
[1719020740661,9.35,133.89,133.85,7.4709]
[1719020741671,7.4678,133.91,133.86,7.4703]
[1719020741859,20.0,133.9,133.86,7.4703]
[1719020742054,27.4683,133.9,133.85,24.7066]
[1719020742276,9.35,133.89,133.85,22.8274]
[1719020743882,9.35,133.89,133.86,7.4704]
[1719020746479,29.35,133.9,133.86,7.4704]
[1719020748485,36.8183,133.9,133.85,32.1774]
[1719020748987,36.8183,133.9,133.86,7.4704]
[1719020749685,29.35,133.9,133.86,7.4704]
[1719020752387,9.35,133.89,133.86,7.4704]
[1719020752584,9.35,133.87,133.83,7.4717]
[1719020752777,9.35,133.87,133.84,7.4715]
[1719020753560,9.35,133.87,133.82,25.1054]
[1719020753561,9.35,133.87,133.85,7.471]
[1719020753781,7.4689,133.89,133.84,7.4713]
[1719020753978,9.35,133.87,133.84,7.4713]
[1719020757070,9.35,133.88,133.84,7.4713]
[1719020757783,9.35,133.88,133.82,15.7554]
[1719020758088,9.35,133.88,133.84,7.4713]
[1719020758491,16.8194,133.88,133.83,7.4719]
[1719020759069,9.35,133.87,133.83,7.4719]
[1719020759775,9.35,133.87,133.84,7.4714]
[1719020760669,7.469,133.89,133.84,7.4714]
[1719020760893,29.35,133.88,133.84,7.4714]
[1719020762195,25.4214467,133.98,133.84,7.4714]
[1719020762196,24.62597461,133.94,133.84,9.35]
[1719020762491,9.35,133.88,133.83,9.35]
[1719020762894,9.35,133.87,133.84,7.4712]
[1719020764203,20.17,133.92,133.82,34.4359]
[1719020764382,20.17,133.92,133.86,7.4704]
[1719020764383,7.468,133.91,133.86,7.4704]
[1719020764582,27.4683,133.9,133.85,7.4707]
[1719020764900,20.0,133.89,133.86,7.4702]
[1719020765093,9.35,133.88,133.86,7.4702]
[1719020766089,29.35,133.89,133.86,7.4702]
[1719020767105,20.0,133.89,133.86,7.4702]
[1719020767513,9.35,133.9,133.87,7.4697]
[1719020767812,9.35,133.9,133.86,7.4702]
[1719020767989,9.35,133.9,133.87,7.4698]
[1719020768187,22.5381,133.93,133.85,18.6773]
[1719020768389,7.4662,133.94,133.89,7.4687]
[1719020768584,29.35,133.93,133.89,7.4687]
[1719020770604,20.0,133.93,133.9,7.4681]
[1719020770913,29.35,133.94,133.9,7.468]
[1719020772291,20.0,133.94,133.9,16.818]
[1719020773904,7.4651,133.96,133.91,16.8175]
[1719020774202,16.8145,133.97,133.92,7.4669]
[1719020774411,16.8145,133.97,133.92,16.8169]
[1719020775783,7.4645,133.97,133.92,16.8169]
[1719020775989,9.35,133.97,133.93,7.4665]
[1719020776183,16.814,133.98,133.93,7.4665]
[1719020776390,20.0,133.97,133.93,7.4665]
[1719020776916,24.0565,133.99,133.94,7.4659]
[1719020777110,29.35,133.98,133.94,7.4659]
[1719020778293,20.0,133.98,133.94,7.4659]
[1719020778508,29.35,133.98,133.94,7.4659]
[1719020778709,20.0,133.98,133.95,9.35]
[1719020778914,20.0,134.01,134.0,7.4624]
[1719020779102,6.3451,134.04,133.99,7.4631]
[1719020779103,13.8057,134.04,133.99,7.4631]
[1719020779304,29.35,134.03,133.99,7.4631]
[1719020780012,20.0,134.03,133.99,7.4631]
[1719020780220,20.0,134.03,133.99,16.8131]
[1719020781710,29.35,134.03,133.98,16.8136]
[1719020781916,29.35,134.03,133.99,7.4629]
[1719020783914,36.811,134.03,133.98,7.4636]
[1719020784117,36.811,134.03,133.98,16.8136]
[1719020784687,29.35,134.03,133.99,7.4629]
[1719020784893,20.0,134.03,133.99,16.8129]
[1719020785209,27.4606,134.04,133.99,16.8129]
[1719020785397,36.8106,134.04,133.99,16.8129]
[1719020785591,29.35,134.04,133.96,22.5198]
[1719020785793,9.35,134.0,133.96,16.1407]
[1719020786011,9.35,134.01,133.96,25.4907]
[1719020786193,9.35,134.01,133.97,7.464]
[1719020787087,9.35,134.02,133.98,7.4635]
[1719020787292,20.0,134.01,133.98,7.4635]
[1719020787493,9.35,134.03,133.98,16.8135]
[1719020787720,20.0,134.02,133.98,16.8135]
[1719020787912,9.35,134.03,133.99,7.4629]
[1719020788120,16.811,134.03,133.98,16.8135]
[1719020788318,9.35,134.02,133.98,7.4635]
[1719020788697,7.461,134.03,133.98,7.4635]
[1719020788906,9.35,134.01,133.98,7.4635]
[1719020789110,9.35,134.02,133.98,7.4635]
[1719020791610,9.35,134.02,133.99,7.4631]
[1719020794800,7.4605,134.04,133.99,7.4631]
[1719020794997,9.35,134.02,133.99,7.4631]
[1719020796413,9.35,134.02,133.96,16.1407]
[1719020796414,9.35,134.0,133.96,16.1407]
[1719020796626,9.35,133.99,133.96,7.4646]
[1719020798831,20.0,134.01,133.93,23.1113]
[1719020799010,9.35,134.01,133.97,7.4642]
[1719020799211,9.35,133.98,133.93,24.1018]
[1719020799426,9.35,133.97,133.94,7.466]
[1719020804907,7.4635,133.99,133.94,7.466]
[1719020805108,20.0,133.98,133.94,7.466]
[1719020805433,29.35,133.98,133.95,7.4653]
[1719020806132,29.35,133.98,133.94,7.4659]
[1719020808747,20.0,133.98,133.94,16.8159]
[1719020809648,20.0,133.98,133.94,9.35]
[1719020810650,27.4638,133.98,133.94,9.35]
[1719020810837,36.8138,133.98,133.93,33.4519]
[1719020811010,36.8138,133.98,133.93,24.1019]
[1719020812638,36.8138,133.98,133.93,7.4663]
[1719020812852,9.35,133.97,133.92,16.8168]
[1719020813234,36.8139,133.98,133.92,16.8168]
[1719020813528,27.4639,133.98,133.93,7.4665]
[1719020813837,36.8139,133.98,133.93,16.8165]
[1719020817356,29.35,133.98,133.94,7.4658]
[1719020817731,20.0,133.98,133.94,16.8158]
[1719020818926,22.8991,134.01,133.92,18.6669]
[1719020819243,15.3882,134.02,133.97,9.35]
[1719020819451,36.8123,134.01,133.96,9.35]
[1719020819761,36.8123,134.01,133.95,16.8153]
[1719020820130,9.35,134.0,133.95,16.8153]
[1719020821929,9.35,134.0,133.96,7.4649]
[1719020822131,20.0,134.01,133.97,9.35]
[1719020822338,9.35,134.03,133.98,16.8135]
[1719020822534,20.0,134.02,133.98,16.8135]
[1719020822732,20.0,134.02,133.98,9.35]
[1719020822936,6.4049,134.06,134.0,28.0067]
[1719020823237,6.4049,134.06,134.01,16.8118]
[1719020823238,20.0,134.05,134.01,16.8118]
[1719020824360,29.35,134.05,134.0,16.8124]
[1719020824536,29.35,134.05,134.01,7.462]
[1719020826953,9.35,134.05,134.01,7.462]
[1719020827152,9.35,134.06,134.01,16.812]
[1719020828864,7.4594,134.06,134.02,9.35]
[1719020829364,9.35,134.05,133.98,16.1681]
[1719020829541,16.8101,134.05,134.0,9.35]
[1719020829962,16.8101,134.05,134.0,16.8126]
[1719020831036,15.1305,134.07,134.01,9.35]
[1719020831357,24.4805,134.07,134.02,7.4612]
[1719020832067,31.9393,134.07,134.02,7.4612]
[1719020832669,7.4593,134.06,134.01,16.812]
[1719020832968,16.8093,134.06,134.01,16.812]
[1719020833551,16.8093,134.06,134.01,9.35]
[1719020833744,16.8093,134.06,134.01,16.812]
[1719020834347,11.94403586,134.1,134.02,9.52]
[1719020834348,27.07453586,134.1,134.02,9.52]
[1719020834676,9.35,134.08,134.04,7.4603]
[1719020835769,7.4592,134.07,134.01,7.4616]
[1719020835940,16.8094,134.06,134.01,7.4617]
[1719020836140,9.35,134.05,134.01,7.4617]
[1719020837359,9.35,134.05,134.0,7.4623]
[1719020837564,9.35,134.04,134.0,7.4623]
[1719020838582,9.35,134.04,134.01,7.462]
[1719020839854,9.35,134.05,134.01,7.462]
[1719020840054,9.35,134.06,134.02,7.4614]
[1719020840454,9.35,134.06,134.01,16.8118]
[1719020841171,7.459,134.07,134.01,16.8118]
[1719020841172,9.35,134.05,134.01,7.4618]
[1719020841969,9.35,134.05,134.02,7.4614]
[1719020842182,9.35,134.06,134.02,7.4614]
[1719020843476,9.35,134.06,134.01,16.8118]
[1719020844274,9.35,134.05,134.01,7.4618]
[1719020844654,7.459,134.07,134.01,7.4618]
[1719020844856,9.35,134.05,134.01,7.4618]
[1719020845257,29.35,134.06,134.01,16.8118]
[1719020846679,9.35,134.05,134.01,7.4618]
[1719020849376,9.35,134.05,133.98,23.6316]
[1719020849377,7.4613,134.03,133.98,23.6316]
[1719020849582,9.35,134.05,133.98,16.1681]
[1719020849583,16.8117,134.02,133.98,16.1681]
[1719020849762,9.35,134.01,133.96,7.4646]
[1719020851055,9.35,134.0,133.96,7.4646]
[1719020851977,9.35,134.0,133.97,7.4643]
[1719020852178,9.35,134.01,133.97,7.4643]
[1719020856485,9.35,134.0,133.97,7.4643]
[1719020858255,21.4095,134.05,133.99,9.35]
[1719020858463,29.35,134.04,133.99,9.35]
[1719020858982,29.35,134.04,134.0,7.4625]
[1719020859277,36.8108,134.04,133.99,7.4629]
[1719020859471,20.0,134.04,133.97,7.4641]
[1719020859687,16.8118,134.02,133.97,16.8141]
[1719020859854,9.35,134.02,133.97,16.8141]
[1719020860579,9.35,134.02,133.98,7.4637]
[1719020860971,20.0,134.04,133.97,28.0107]
[1719020861279,29.35,134.04,133.99,9.35]
[1719020861459,29.35,134.04,134.0,7.4625]
[1719020862074,7.459,134.07,134.02,7.4615]
[1719020862290,20.0,134.06,134.02,16.8115]
[1719020863763,7.4574,134.1,134.05,9.35]
[1719020863964,20.0,134.09,134.05,9.35]
[1719020864873,20.0,134.09,134.05,16.8098]
[1719020865093,20.0,134.09,134.06,9.35]
[1719020866385,7.4567,134.11,134.06,16.8093]
[1719020866590,7.4567,134.11,134.07,9.35]
[1719020867270,7.4567,134.11,134.08,9.35]
[1719020867593,7.4567,134.11,134.07,9.35]
[1719020869494,9.35,134.12,134.07,16.8085]
[1719020869868,9.35,134.13,134.08,9.35]
[1719020870074,20.0,134.12,134.08,9.35]
[1719020871013,27.4561,134.12,134.08,9.35]
[1719020873874,36.8061,134.12,134.07,9.35]
[1719020874195,7.4565,134.11,134.07,9.35]
[1719020875190,36.8062,134.12,134.07,7.4587]
[1719020875370,36.8062,134.12,134.07,16.8087]
[1719020877991,27.4562,134.12,134.07,16.8087]
[1719020878193,36.8062,134.12,134.07,16.8087]
[1719020879395,9.35,134.09,134.06,15.3114]
[1719020879603,9.35,134.09,134.04,9.35]
[1719020880177,9.35,134.09,134.05,7.4595]
[1719020880386,20.0,134.12,134.06,7.4592]
[1719020880694,9.35,134.11,134.07,7.4587]
[1719020880879,20.0,134.1,134.07,7.4587]
[1719020881080,20.0,134.1,134.06,7.459]
[1719020881881,29.35,134.1,134.06,7.459]
[1719020882096,20.0,134.1,134.06,7.459]
[1719020884300,29.35,134.1,134.06,7.459]
[1719020884997,7.4551,134.14,134.09,7.4576]
[1719020885183,20.0,134.13,134.09,7.4576]
[1719020885389,34.1265,134.17,134.06,6.4892]
[1719020885390,7.454,134.16,134.1,9.35]
[1719020885587,29.35,134.15,134.11,7.4564]
[1719020885784,20.0,134.15,134.11,7.4564]
[1719020885983,29.35,134.15,134.11,7.4564]
[1719020887203,36.8043,134.15,134.1,16.807]
[1719020887800,9.35,134.14,134.1,7.457]
[1719020887997,27.4543,134.15,134.1,7.457]
[1719020888204,9.35,134.14,134.1,7.457]
[1719020888403,16.8051,134.14,134.09,9.35]
[1719020888604,29.35,134.13,134.08,16.8078]
[1719020888786,9.35,134.13,134.08,16.8078]
[1719020889182,9.35,134.13,134.09,7.4575]
[1719020891496,9.35,134.13,134.09,16.8075]
[1719020891682,9.35,134.14,134.09,16.8075]
[1719020891888,20.0,134.13,134.09,16.8075]
[1719020892095,20.0,134.13,134.09,9.35]
[1719020892489,29.35,134.13,134.08,16.8079]
[1719020893391,9.35,134.11,134.07,7.4586]
[1719020895105,7.4562,134.12,134.07,7.4586]
[1719020895301,20.0,134.13,134.08,7.4582]
[1719020895302,9.35,134.11,134.08,7.4582]
[1719020895503,9.35,134.12,134.08,7.4582]
[1719020895702,20.0,134.13,134.08,16.8082]
[1719020895903,29.35,134.13,134.08,16.8082]
[1719020897709,36.8054,134.13,134.08,16.8082]
[1719020899200,16.806,134.12,134.07,16.8085]
[1719020899887,16.806,134.12,134.07,7.4585]
[1719020901599,9.35,134.12,134.07,7.4585]
[1719020902310,16.8077,134.09,134.04,22.9241]
[1719020902494,9.35,134.09,134.05,7.4598]
[1719020903091,7.4573,134.1,134.05,7.4598]
[1719020903290,9.35,134.09,134.05,7.4598]
[1719020911220,9.35,134.08,134.05,7.4598]
[1719020912616,24.5327,134.12,134.04,15.4641]
[1719020912617,9.35,134.09,134.04,15.4641]
[1719020912815,9.35,134.1,134.07,7.4587]
[1719020913025,9.35,134.11,134.07,7.4587]
[1719020913211,20.0,134.1,134.07,7.4587]
[1719020914214,29.35,134.1,134.07,7.4587]
[1719020914827,33.8189,134.15,134.08,7.4578]